fUSD/lending_fUSD_20260525
["ID","MTS","AMOUNT","RATE_DAILY","PERIOD"]
[422939909,1779658244000,-150.0,0.00026641,2]
[422939910,1779658244000,-163.04,0.00026829,7]
[422939915,1779658244000,-500.0,0.00026946,120]
[422939918,1779658244000,-9368.01298948,0.00027006,2]
[422939913,1779658244000,-3306.07475076,0.000269,3]
[422939919,1779658244000,-5000.0,0.00027006,2]
[422939914,1779658244000,-348.42,0.000269,7]
[422939917,1779658244000,-300.0,0.00027005,10]
[422939920,1779658244000,-5000.0,0.00027006,2]
[422939916,1779658244000,-150.0,0.00027,2]
[422939927,1779658244000,-393.0,0.00027228,2]
[422939922,1779658244000,-300.0,0.00027159,10]
[422939925,1779658244000,-393.0,0.0002718,2]
[422939926,1779658244000,-840.93,0.00027193,7]
[422939924,1779658244000,-393.0,0.00027162,2]
[422939928,1779658244000,-393.0,0.0002723,2]
[422939923,1779658244000,-15115.42973758,0.0002716,2]
[422939865,1779658244000,-150.0,0.00025373,2]
[422939904,1779658244000,-500.0,0.00026599,2]
[422939895,1779658244000,-116419.15191945,0.00026599,2]
[422939921,1779658244000,-5000.0,0.00027006,2]
[422939906,1779658244000,-500.0,0.00026599,2]
[422939899,1779658244000,-500.0,0.00026599,2]
[422939867,1779658244000,-1271.0,0.00025567,2]
[422939862,1779658244000,-169.53,0.00025102,14]
[422939870,1779658244000,-625.0,0.00025567,2]
[422939876,1779658244000,-150.0,0.00025688,2]
[422939878,1779658244000,-11565.9988304,0.00025736,2]
[422939879,1779658244000,-316.75294,0.00026,2]
[422939869,1779658244000,-1224.0,0.00025567,2]
[422939881,1779658244000,-169.53,0.00026197,14]
[422939880,1779658244000,-501.0,0.00026189,9]
[422939873,1779658244000,-169.53,0.0002565,14]
[422939872,1779658244000,-1000.0,0.000256,2]
[422939875,1779658244000,-169.54,0.0002565,14]
[422939871,1779658244000,-927.0,0.00025567,2]
[422939877,1779658244000,-349.0,0.00025693,10]
[422939882,1779658244000,-169.53,0.00026197,14]
[422939896,1779658244000,-500.0,0.00026599,2]
[422939874,1779658244000,-169.53,0.0002565,14]
[422939890,1779658244000,-151.0,0.00026597,7]
[422939892,1779658244000,-300.0,0.00026598,10]
[422939888,1779658244000,-222.32437611,0.000265,2]
[422939887,1779658244000,-700.0,0.00026356,7]
[422939883,1779658244000,-169.54,0.00026197,14]
[422939891,1779658244000,-300.0,0.00026598,10]
[422939894,1779658244000,-351.41551866,0.00026599,10]
[422939886,1779658244000,-500.0,0.00026356,7]
[422939893,1779658244000,-300.0,0.00026599,10]
[422939885,1779658244000,-563.06519249,0.00026348,2]
[422939884,1779658244000,-162.4,0.00026296,2]
[422939889,1779658244000,-1000.0,0.0002657,2]
[422939956,1779658245000,-2316.0,0.00027561,3]
[422939954,1779658245000,-2316.0,0.00027561,3]
[422939960,1779658245000,-1000.0,0.0002757,2]
[422939955,1779658245000,-1589.0,0.00027561,3]
[422939953,1779658245000,-393.0,0.00027552,2]
[422939958,1779658245000,-169.53,0.00027567,14]
[422939957,1779658245000,-169.53,0.00027567,14]
[422939964,1779658245000,-542.52692395,0.0002771,120]
[422939965,1779658245000,-506.8160823,0.0002771,120]
[422939961,1779658245000,-1589.0,0.00027589,3]
[422939970,1779658245000,-176.65,0.00027711,7]
[422939962,1779658245000,-500.0,0.00027631,120]
[422939969,1779658245000,-18232.4781738,0.00027711,2]
[422939966,1779658245000,-500.0,0.0002771,120]
[422939968,1779658245000,-124583.3153443,0.00027711,2]
[422939982,1779658245000,-274.499836,0.00027711,7]
[422939972,1779658245000,-154.07,0.00027711,7]
[422939977,1779658245000,-221.743428,0.00027711,7]
[422939948,1779658245000,-150.0,0.0002755,2]
[422939973,1779658245000,-508.091454,0.00027711,7]
[422939967,1779658245000,-21646.5668155,0.00027711,2]
[422939950,1779658245000,-163.04,0.0002755,2]
[422939936,1779658245000,-6910.81,0.000274,14]
[422939952,1779658245000,-151.39,0.0002755,2]
[422939971,1779658245000,-151.0,0.00027711,7]
[422939932,1779658245000,-393.0,0.00027375,2]
[422939933,1779658245000,-1500.0,0.00027397,2]
[422939929,1779658245000,-393.0,0.0002727,2]
[422939934,1779658245000,-300.0,0.00027397,2]
[422939931,1779658245000,-501.0,0.00027358,10]
[422939930,1779658245000,-393.0,0.00027296,2]
[422939935,1779658245000,-1000.0,0.00027397,20]
[422939937,1779658245000,-163.0,0.000274,3]
[422939940,1779658245000,-2316.0,0.00027409,3]
[422939946,1779658245000,-25739.13632781,0.00027544,7]
[422939944,1779658245000,-2316.0,0.00027537,3]
[422939945,1779658245000,-1587.0,0.00027542,3]
[422939938,1779658245000,-1589.0,0.000274,3]
[422939941,1779658245000,-700.0,0.00027452,60]
[422939939,1779658245000,-2316.0,0.000274,3]
[422939943,1779658245000,-267.0,0.000275,5]
[422939947,1779658245000,-176.65,0.0002755,30]
[422939942,1779658245000,-393.0,0.00027492,2]
[422939949,1779658245000,-154.07,0.0002755,30]
[422939951,1779658245000,-659.62,0.0002755,30]
[422939959,1779658245000,-169.52,0.00027567,14]
[422939983,1779658245000,-659.62,0.00027711,7]
[422939963,1779658245000,-150.0,0.00027644,2]
[422939978,1779658245000,-221.743428,0.00027711,7]
[422939998,1779658245000,-348.85,0.000278,7]
[422940010,1779658245000,-233.64010052,0.00027908,10]
[422940008,1779658245000,-1200.0,0.000279,10]
[422940009,1779658245000,-1600.0,0.000279,10]
[422940000,1779658245000,-393.0,0.00027851,2]
[422939999,1779658245000,-451.29,0.00027808,2]
[422940004,1779658245000,-176.65,0.00027872,2]
[422940012,1779658245000,-1000.0,0.0002797,2]
[422940014,1779658245000,-1000.0,0.0002797,2]
[422940024,1779658245000,-624.92373812,0.00027999,120]
[422940011,1779658245000,-1000.0,0.0002797,2]
[422940013,1779658245000,-1000.0,0.0002797,2]
[422940022,1779658245000,-500.0,0.00027999,120]
[422940015,1779658245000,-150.0,0.00027973,2]
[422940020,1779658245000,-500.0,0.00027999,120]
[422940021,1779658245000,-500.0,0.00027999,120]
[422940018,1779658245000,-500.0,0.00027999,120]
[422940019,1779658245000,-500.0,0.00027999,120]
[422940017,1779658245000,-151.0,0.00027997,7]
[422940016,1779658245000,-979.12401728,0.00027986,2]
[422939974,1779658245000,-508.091454,0.00027711,7]
[422940002,1779658245000,-2316.0,0.00027861,3]
[422940006,1779658245000,-659.62,0.00027872,2]
[422940001,1779658245000,-163.0,0.00027861,3]
[422940007,1779658245000,-1589.0,0.00027881,3]
[422939975,1779658245000,-508.091454,0.00027711,7]
[422939979,1779658245000,-221.743428,0.00027711,7]
[422939976,1779658245000,-508.091454,0.00027711,7]
[422939980,1779658245000,-221.743428,0.00027711,7]
[422940005,1779658245000,-154.07,0.00027872,2]
[422939984,1779658245000,-151.0,0.00027711,7]
[422939986,1779658245000,-159.802164,0.00027711,7]
[422939988,1779658245000,-2316.0,0.0002772,3]
[422939987,1779658245000,-159.802164,0.00027711,7]
[422939989,1779658245000,-2316.0,0.0002772,3]
[422939990,1779658245000,-1589.0,0.0002772,3]
[422939981,1779658245000,-151.0,0.00027711,7]
[422939993,1779658245000,-386.0,0.00027733,2]
[422940025,1779658245000,-958563.32056135,0.00028,120]
[422939994,1779658245000,-1589.0,0.00027758,3]
[422939985,1779658245000,-159.802164,0.00027711,7]
[422939992,1779658245000,-2316.0,0.0002772,3]
[422939996,1779658245000,-943.0,0.00027786,3]
[422939995,1779658245000,-393.0,0.00027762,2]
[422939997,1779658245000,-393.0,0.00027799,2]
[422939991,1779658245000,-163.0,0.0002772,3]
[422940003,1779658245000,-1000.0,0.0002787,2]
[422940039,1779658246000,-2137.9822266,0.00028,120]
[422940038,1779658246000,-6159.4184944,0.00028,120]
[422940036,1779658246000,-81471.94163909,0.00028,120]
[422940037,1779658246000,-188370.46937987,0.00028,120]
[422940040,1779658246000,-776.90309751,0.00028,120]
[422940041,1779658246000,-540.05395328,0.00028,120]
[422940031,1779658246000,-2551.37717264,0.00028,120]
[422940034,1779658246000,-8736.14,0.00027397,10]
[422940032,1779658246000,-862.73058502,0.000149,2]
[422940030,1779658246000,-280.130245,0.00028,120]
[422940028,1779658246000,-257.1528968,0.00028,120]
[422940029,1779658246000,-1645.54075,0.00028,120]
[422940042,1779658246000,-167.65,0.0001369,2]
[422940033,1779658246000,-159.802164,0.00015,2]
[422940044,1779658246000,-313.02793,0.00028,120]
[422940035,1779658246000,-159.802164,0.00027711,7]
[422940047,1779658246000,-2023.42774474,0.00028,120]
[422940046,1779658246000,-506.3588208,0.00028,120]
[422940056,1779658246000,-175.25,0.0002755,2]
[422940054,1779658246000,-3026.053,0.00028,120]
[422940058,1779658246000,-51171.10979297,0.00028,120]
[422940057,1779658246000,-27125.65566076,0.00028,120]
[422940059,1779658246000,-4003.53978987,0.00028,120]
[422940048,1779658246000,-501.0,0.00018,2]
[422940055,1779658246000,-2090.00000001,0.00028,120]
[422940050,1779658246000,-3546.0,0.00024172,2]
[422940053,1779658246000,-1900.2110129,0.00028,120]
[422940049,1779658246000,-3546.0,0.00021172,2]
[422940051,1779658246000,-2252.19633975,0.00028,120]
[422940045,1779658246000,-3129.97935026,0.00028,120]
[422940043,1779658246000,-167.65,0.0001595,2]
[422940052,1779658246000,-641.0,0.0002797,10]
[422940115,1779659434000,-282.35163695,0.00010178,2]
[422940114,1779659434000,-155.82,0.00010178,2]
[422940117,1779659434000,-250.0,0.00010178,2]
[422940120,1779659434000,-250.0,0.00010361,2]
[422940116,1779659434000,-217.64836305,0.00010178,2]
[422940121,1779659434000,-1443.99607682,0.000107,2]
[422940118,1779659434000,-198.98506562,0.00010178,2]
[422940119,1779659434000,-500.0,0.00010319,2]
[422940158,1779659435000,-629.90047524,0.0001357,2]
[422940147,1779659435000,-4800.74438523,0.00013471,2]
[422940151,1779659435000,-2270.295,0.00013562,2]
[422940153,1779659435000,-669.738243,0.00013563,2]
[422940155,1779659435000,-13977.20306367,0.00013563,2]
[422940154,1779659435000,-168.44554084,0.00013563,2]
[422940157,1779659435000,-150.0,0.0001357,2]
[422940163,1779659435000,-500.0,0.0001357,2]
[422940160,1779659435000,-379.28356176,0.0001357,2]
[422940156,1779659435000,-31776.28823457,0.00013563,2]
[422940161,1779659435000,-500.0,0.0001357,2]
[422940174,1779659435000,-500.0,0.0001357,2]
[422940162,1779659435000,-500.0,0.0001357,2]
[422940164,1779659435000,-156.77917668,0.0001357,2]
[422940165,1779659435000,-500.0,0.0001357,2]
[422940167,1779659435000,-500.0,0.0001357,2]
[422940175,1779659435000,-500.0,0.0001357,2]
[422940166,1779659435000,-500.0,0.0001357,2]
[422940169,1779659435000,-500.0,0.0001357,2]
[422940171,1779659435000,-500.0,0.0001357,2]
[422940172,1779659435000,-500.0,0.0001357,2]
[422940168,1779659435000,-500.0,0.0001357,2]
[422940152,1779659435000,-173.244,0.00013562,2]
[422940170,1779659435000,-500.0,0.0001357,2]
[422940159,1779659435000,-500.0,0.0001357,2]
[422940144,1779659435000,-150.0,0.0001347,2]
[422940139,1779659435000,-8003.98,0.00013065,2]
[422940146,1779659435000,-868.53120971,0.00013471,2]
[422940122,1779659435000,-144.52392318,0.000107,2]
[422940123,1779659435000,-191.66699665,0.00011196,2]
[422940124,1779659435000,-250.0,0.00011196,2]
[422940125,1779659435000,-41.72984653,0.00011196,2]
[422940127,1779659435000,-170.13,0.000118,2]
[422940126,1779659435000,-458.27015347,0.00011196,2]
[422940130,1779659435000,-170.13,0.00012421,2]
[422940128,1779659435000,-166.45,0.00012375,2]
[422940129,1779659435000,-191.14,0.00012419,2]
[422940131,1779659435000,-1200.0,0.000125,2]
[422940132,1779659435000,-10910.45810061,0.00012501,2]
[422940148,1779659435000,-1763.20802313,0.00013471,2]
[422940133,1779659435000,-604.42189939,0.00012501,2]
[422940135,1779659435000,-105.37222082,0.00012795,2]
[422940141,1779659435000,-615.73022702,0.00013284,2]
[422940134,1779659435000,-61.37777918,0.00012795,2]
[422940140,1779659435000,-409.82230698,0.00013284,2]
[422940138,1779659435000,-170.13,0.00013042,2]
[422940137,1779659435000,-709.79744082,0.00012813,2]
[422940142,1779659435000,-540.737466,0.00013284,2]
[422940143,1779659435000,-192.2,0.00013284,2]
[422940145,1779659435000,-2076.8117,0.00013471,2]
[422940150,1779659435000,-166.75,0.00013499,2]
[422940149,1779659435000,-28347.57308193,0.00013471,2]
[422940136,1779659435000,-193.86255918,0.00012813,2]
[422940176,1779659435000,-500.0,0.0001357,2]
[422940182,1779659435000,-500.0,0.0001357,2]
[422940173,1779659435000,-500.0,0.0001357,2]
[422940212,1779659435000,-500.0,0.00013698,2]
[422940207,1779659435000,-500.0,0.0001357,2]
[422940211,1779659435000,-591.68360225,0.0001369,2]
[422940205,1779659435000,-368.35346241,0.0001357,2]
[422940209,1779659435000,-170.13,0.00013663,2]
[422940210,1779659435000,-10000.0,0.00013687,2]
[422940213,1779659435000,-374.2529762,0.00013698,2]
[422940214,1779659435000,-232.53610738,0.00013698,2]
[422940220,1779659435000,-500.0,0.00013698,2]
[422940219,1779659435000,-500.0,0.00013698,2]
[422940215,1779659435000,-500.0,0.00013698,2]
[422940206,1779659435000,-500.0,0.0001357,2]
[422940218,1779659435000,-500.0,0.00013698,2]
[422940223,1779659435000,-504.29151086,0.00013698,2]
[422940216,1779659435000,-500.0,0.00013698,2]
[422940217,1779659435000,-500.0,0.00013698,2]
[422940224,1779659435000,-500.0,0.00013698,2]
[422940226,1779659435000,-500.0,0.00013698,2]
[422940225,1779659435000,-307.08,0.00013698,2]
[422940228,1779659435000,-500.0,0.00013698,2]
[422940227,1779659435000,-500.0,0.00013698,2]
[422940230,1779659435000,-503.47273161,0.00013698,2]
[422940229,1779659435000,-500.0,0.00013698,2]
[422940177,1779659435000,-500.0,0.0001357,2]
[422940221,1779659435000,-500.0,0.00013698,2]
[422940208,1779659435000,-500.0,0.0001357,2]
[422940222,1779659435000,-500.0,0.00013698,2]
[422940203,1779659435000,-500.0,0.0001357,2]
[422940204,1779659435000,-500.0,0.0001357,2]
[422940178,1779659435000,-500.0,0.0001357,2]
[422940179,1779659435000,-500.0,0.0001357,2]
[422940180,1779659435000,-500.0,0.0001357,2]
[422940184,1779659435000,-500.0,0.0001357,2]
[422940185,1779659435000,-500.0,0.0001357,2]
[422940181,1779659435000,-500.0,0.0001357,2]
[422940188,1779659435000,-500.0,0.0001357,2]
[422940186,1779659435000,-500.0,0.0001357,2]
[422940187,1779659435000,-500.0,0.0001357,2]
[422940190,1779659435000,-500.0,0.0001357,2]
[422940189,1779659435000,-500.0,0.0001357,2]
[422940183,1779659435000,-500.0,0.0001357,2]
[422940191,1779659435000,-500.0,0.0001357,2]
[422940202,1779659435000,-500.0,0.0001357,2]
[422940201,1779659435000,-500.0,0.0001357,2]
[422940200,1779659435000,-500.0,0.0001357,2]
[422940199,1779659435000,-500.0,0.0001357,2]
[422940198,1779659435000,-500.0,0.0001357,2]
[422940195,1779659435000,-500.0,0.0001357,2]
[422940194,1779659435000,-500.0,0.0001357,2]
[422940192,1779659435000,-500.0,0.0001357,2]
[422940196,1779659435000,-358.26893495,0.0001357,2]
[422940193,1779659435000,-500.0,0.0001357,2]
[422940197,1779659435000,-500.0,0.0001357,2]
[422940275,1779659436000,-500.0,0.00013698,2]
[422940266,1779659436000,-500.0,0.00013698,2]
[422940270,1779659436000,-500.0,0.00013698,2]
[422940267,1779659436000,-500.0,0.00013698,2]
[422940268,1779659436000,-500.0,0.00013698,2]
[422940273,1779659436000,-500.0,0.00013698,2]
[422940271,1779659436000,-500.0,0.00013698,2]
[422940265,1779659436000,-500.0,0.00013698,2]
[422940264,1779659436000,-500.0,0.00013698,2]
[422940272,1779659436000,-500.0,0.00013698,2]
[422940285,1779659436000,-500.0,0.00013698,2]
[422940269,1779659436000,-500.0,0.00013698,2]
[422940274,1779659436000,-500.0,0.00013698,2]
[422940290,1779659436000,-536.48,0.00013698,2]
[422940286,1779659436000,-500.0,0.00013698,2]
[422940279,1779659436000,-500.0,0.00013698,2]
[422940282,1779659436000,-500.0,0.00013698,2]
[422940276,1779659436000,-500.0,0.00013698,2]
[422940284,1779659436000,-500.0,0.00013698,2]
[422940280,1779659436000,-500.0,0.00013698,2]
[422940278,1779659436000,-500.0,0.00013698,2]
[422940281,1779659436000,-500.0,0.00013698,2]
[422940277,1779659436000,-500.0,0.00013698,2]
[422940283,1779659436000,-500.0,0.00013698,2]
[422940288,1779659436000,-506.67968673,0.00013698,2]
[422940292,1779659436000,-549.55893215,0.00013698,2]
[422940263,1779659436000,-464.17773435,0.00013698,2]
[422940287,1779659436000,-536.48,0.00013698,2]
[422940262,1779659436000,-500.0,0.00013698,2]
[422940233,1779659436000,-500.0,0.00013698,2]
[422940260,1779659436000,-500.0,0.00013698,2]
[422940236,1779659436000,-500.0,0.00013698,2]
[422940231,1779659436000,-500.0,0.00013698,2]
[422940232,1779659436000,-500.0,0.00013698,2]
[422940234,1779659436000,-500.0,0.00013698,2]
[422940289,1779659436000,-536.48,0.00013698,2]
[422940235,1779659436000,-500.0,0.00013698,2]
[422940237,1779659436000,-638.56858511,0.00013698,2]
[422940239,1779659436000,-500.0,0.00013698,2]
[422940242,1779659436000,-500.0,0.00013698,2]
[422940240,1779659436000,-500.0,0.00013698,2]
[422940248,1779659436000,-500.0,0.00013698,2]
[422940238,1779659436000,-500.0,0.00013698,2]
[422940245,1779659436000,-500.0,0.00013698,2]
[422940241,1779659436000,-500.0,0.00013698,2]
[422940244,1779659436000,-500.0,0.00013698,2]
[422940243,1779659436000,-500.0,0.00013698,2]
[422940247,1779659436000,-500.0,0.00013698,2]
[422940246,1779659436000,-500.0,0.00013698,2]
[422940252,1779659436000,-500.0,0.00013698,2]
[422940249,1779659436000,-500.0,0.00013698,2]
[422940251,1779659436000,-500.0,0.00013698,2]
[422940253,1779659436000,-500.0,0.00013698,2]
[422940256,1779659436000,-500.0,0.00013698,2]
[422940254,1779659436000,-500.0,0.00013698,2]
[422940259,1779659436000,-500.0,0.00013698,2]
[422940255,1779659436000,-500.0,0.00013698,2]
[422940257,1779659436000,-500.0,0.00013698,2]
[422940258,1779659436000,-500.0,0.00013698,2]
[422940261,1779659436000,-500.0,0.00013698,2]
[422940250,1779659436000,-500.0,0.00013698,2]
[422940293,1779659436000,-536.48,0.00013698,2]
[422940291,1779659436000,-536.48,0.00013698,2]
[422940298,1779659436000,-536.48,0.00013698,2]
[422940325,1779659436000,-500.0,0.00013698,2]
[422940327,1779659436000,-500.0,0.00013698,2]
[422940333,1779659436000,-500.0,0.00013698,2]
[422940334,1779659436000,-500.0,0.00013698,2]
[422940332,1779659436000,-500.0,0.00013698,2]
[422940330,1779659436000,-500.0,0.00013698,2]
[422940329,1779659436000,-500.0,0.00013698,2]
[422940335,1779659436000,-461.96296042,0.00013698,2]
[422940328,1779659436000,-500.0,0.00013698,2]
[422940331,1779659436000,-500.0,0.00013698,2]
[422940339,1779659436000,-500.0,0.00013698,2]
[422940340,1779659436000,-500.0,0.00013698,2]
[422940341,1779659436000,-500.0,0.00013698,2]
[422940343,1779659436000,-500.0,0.00013698,2]
[422940342,1779659436000,-500.0,0.00013698,2]
[422940348,1779659436000,-500.0,0.00013698,2]
[422940345,1779659436000,-500.0,0.00013698,2]
[422940346,1779659436000,-500.0,0.00013698,2]
[422940349,1779659436000,-500.0,0.00013698,2]
[422940344,1779659436000,-500.0,0.00013698,2]
[422940350,1779659436000,-500.0,0.00013698,2]
[422940347,1779659436000,-542.52692395,0.00013698,2]
[422940351,1779659436000,-500.0,0.00013698,2]
[422940353,1779659436000,-500.0,0.00013698,2]
[422940352,1779659436000,-500.0,0.00013698,2]
[422940354,1779659436000,-500.0,0.00013698,2]
[422940355,1779659436000,-500.0,0.00013698,2]
[422940294,1779659436000,-536.48,0.00013698,2]
[422940356,1779659436000,-500.0,0.00013698,2]
[422940338,1779659436000,-500.0,0.00013698,2]
[422940337,1779659436000,-500.0,0.00013698,2]
[422940357,1779659436000,-500.0,0.00013698,2]
[422940326,1779659436000,-500.0,0.00013698,2]
[422940336,1779659436000,-500.0,0.00013698,2]
[422940299,1779659436000,-536.48,0.00013698,2]
[422940296,1779659436000,-536.48,0.00013698,2]
[422940295,1779659436000,-536.48,0.00013698,2]
[422940301,1779659436000,-500.0,0.00013698,2]
[422940311,1779659436000,-500.0,0.00013698,2]
[422940312,1779659436000,-500.0,0.00013698,2]
[422940300,1779659436000,-536.48,0.00013698,2]
[422940304,1779659436000,-500.0,0.00013698,2]
[422940302,1779659436000,-500.0,0.00013698,2]
[422940306,1779659436000,-500.0,0.00013698,2]
[422940310,1779659436000,-500.0,0.00013698,2]
[422940307,1779659436000,-500.0,0.00013698,2]
[422940309,1779659436000,-500.0,0.00013698,2]
[422940297,1779659436000,-536.48,0.00013698,2]
[422940303,1779659436000,-500.0,0.00013698,2]
[422940305,1779659436000,-500.0,0.00013698,2]
[422940324,1779659436000,-500.0,0.00013698,2]
[422940319,1779659436000,-454.50013012,0.00013698,2]
[422940323,1779659436000,-500.0,0.00013698,2]
[422940318,1779659436000,-500.0,0.00013698,2]
[422940314,1779659436000,-500.0,0.00013698,2]
[422940321,1779659436000,-500.0,0.00013698,2]
[422940320,1779659436000,-500.0,0.00013698,2]
[422940317,1779659436000,-500.0,0.00013698,2]
[422940316,1779659436000,-500.0,0.00013698,2]
[422940315,1779659436000,-500.0,0.00013698,2]
[422940313,1779659436000,-500.0,0.00013698,2]
[422940308,1779659436000,-500.0,0.00013698,2]
[422940322,1779659436000,-500.0,0.00013698,2]
[422940400,1779659437000,-500.0,0.00013698,2]
[422940402,1779659437000,-500.0,0.00013698,2]
[422940397,1779659437000,-500.0,0.00013698,2]
[422940391,1779659437000,-500.0,0.00013698,2]
[422940399,1779659437000,-500.0,0.00013698,2]
[422940390,1779659437000,-500.0,0.00013698,2]
[422940387,1779659437000,-500.0,0.00013698,2]
[422940393,1779659437000,-500.0,0.00013698,2]
[422940395,1779659437000,-500.0,0.00013698,2]
[422940408,1779659437000,-500.0,0.00013698,2]
[422940398,1779659437000,-500.0,0.00013698,2]
[422940414,1779659437000,-573.0866294,0.00013698,2]
[422940409,1779659437000,-500.0,0.00013698,2]
[422940403,1779659437000,-500.0,0.00013698,2]
[422940407,1779659437000,-500.0,0.00013698,2]
[422940404,1779659437000,-500.0,0.00013698,2]
[422940401,1779659437000,-500.0,0.00013698,2]
[422940406,1779659437000,-500.0,0.00013698,2]
[422940412,1779659437000,-500.0,0.00013698,2]
[422940410,1779659437000,-500.0,0.00013698,2]
[422940411,1779659437000,-500.0,0.00013698,2]
[422940413,1779659437000,-500.0,0.00013698,2]
[422940425,1779659437000,-500.0,0.00013698,2]
[422940416,1779659437000,-500.0,0.00013698,2]
[422940424,1779659437000,-500.0,0.00013698,2]
[422940396,1779659437000,-629.41487605,0.00013698,2]
[422940405,1779659437000,-500.0,0.00013698,2]
[422940392,1779659437000,-500.0,0.00013698,2]
[422940371,1779659437000,-639.6,0.00013698,2]
[422940382,1779659437000,-500.0,0.00013698,2]
[422940363,1779659437000,-639.6,0.00013698,2]
[422940364,1779659437000,-500.0,0.00013698,2]
[422940365,1779659437000,-639.6,0.00013698,2]
[422940358,1779659437000,-624.92373812,0.00013698,2]
[422940361,1779659437000,-500.0,0.00013698,2]
[422940360,1779659437000,-368.83189507,0.00013698,2]
[422940362,1779659437000,-639.6,0.00013698,2]
[422940359,1779659437000,-500.0,0.00013698,2]
[422940366,1779659437000,-500.0,0.00013698,2]
[422940367,1779659437000,-639.6,0.00013698,2]
[422940368,1779659437000,-500.0,0.00013698,2]
[422940373,1779659437000,-500.0,0.00013698,2]
[422940370,1779659437000,-639.6,0.00013698,2]
[422940372,1779659437000,-500.0,0.00013698,2]
[422940369,1779659437000,-639.6,0.00013698,2]
[422940376,1779659437000,-500.0,0.00013698,2]
[422940374,1779659437000,-500.0,0.00013698,2]
[422940378,1779659437000,-500.0,0.00013698,2]
[422940377,1779659437000,-500.0,0.00013698,2]
[422940375,1779659437000,-178.01754981,0.00013698,2]
[422940386,1779659437000,-500.0,0.00013698,2]
[422940381,1779659437000,-500.0,0.00013698,2]
[422940379,1779659437000,-500.0,0.00013698,2]
[422940384,1779659437000,-500.0,0.00013698,2]
[422940385,1779659437000,-500.0,0.00013698,2]
[422940380,1779659437000,-500.0,0.00013698,2]
[422940383,1779659437000,-500.0,0.00013698,2]
[422940388,1779659437000,-500.0,0.00013698,2]
[422940417,1779659437000,-500.0,0.00013698,2]
[422940394,1779659437000,-500.0,0.00013698,2]
[422940422,1779659437000,-500.0,0.00013698,2]
[422940455,1779659437000,-2500.0,0.00013699,2]
[422940453,1779659437000,-500.0,0.00013698,2]
[422940462,1779659437000,-555.08238767,0.00013699,2]
[422940461,1779659437000,-555.08238767,0.00013699,2]
[422940458,1779659437000,-166.66,0.00013699,2]
[422940452,1779659437000,-500.0,0.00013698,2]
[422940459,1779659437000,-555.08238767,0.00013699,2]
[422940463,1779659437000,-555.08238767,0.00013699,2]
[422940464,1779659437000,-555.08238767,0.00013699,2]
[422940460,1779659437000,-555.08238767,0.00013699,2]
[422940465,1779659437000,-555.08238767,0.00013699,2]
[422940466,1779659437000,-555.08238767,0.00013699,2]
[422940467,1779659437000,-555.08238767,0.00013699,2]
[422940456,1779659437000,-200.0,0.00013699,2]
[422940468,1779659437000,-555.08238767,0.00013699,2]